fUST/lending_fUST_20251113
["ID","MTS","AMOUNT","RATE_DAILY","PERIOD"]
[393779522,1762977044065,-500.0,0.00054794,120]
[393779523,1762977044075,-500.0,0.00054794,120]
[393779524,1762977044083,-500.0,0.00054794,120]
[393779525,1762977044092,-500.0,0.00054794,120]
[393779526,1762977044101,-500.0,0.00054794,120]
[393779527,1762977044110,-500.0,0.00054794,120]
[393779528,1762977044119,-500.0,0.00054794,120]
[393779529,1762977044128,-500.0,0.00054794,120]
[393779530,1762977044139,-215.52178284,0.00054794,120]
[393779550,1762977046859,-151.0,0.00035004,7]
[393779551,1762977046868,-205.59067389,0.00035059,7]
[393779552,1762977046879,-284.47821716,0.00054794,120]
[393779553,1762977046888,-506.23,0.00054794,2]
[393779554,1762977046898,-500.0,0.00054794,120]
[393779555,1762977046908,-498.7011089,0.00054794,120]
[393779563,1762977065305,214.93920767,0.00017389,2]
[393779566,1762977157378,-500.0,0.00035004,7]
[393779567,1762977157401,-151.0,0.00035004,7]
[393779568,1762977157425,-292.20802633,0.00035004,7]
[393779569,1762977157449,-151.0,0.00035004,7]
[393779570,1762977157473,-300.0,0.00035058,2]
[393779571,1762977157499,-500.0,0.00035059,7]
[393779572,1762977157523,-202.3787376,0.00035059,7]
[393779573,1762977157547,-151.0,0.00035059,7]
[393779574,1762977157573,-500.0,0.00035114,7]
[393779575,1762977157596,-212.81961972,0.00035114,7]
[393779576,1762977157620,-500.0,0.00035168,7]
[393779577,1762977157643,-34707.13767041,0.00035168,2]
[393779578,1762977157667,-500.0,0.00035223,7]
[393779579,1762977157690,-500.0,0.00035278,7]
[393779580,1762977157715,-218.71594749,0.00035333,7]
[393779591,1762977434353,-169.05292711,0.00029163,2]
[393779592,1762977434378,-207.82368706,0.00030876,2]
[393779593,1762977434402,-302.10535272,0.00033898,60]
[393779594,1762977434429,-500.0,0.00033898,60]
[393779595,1762977434453,-500.0,0.00033898,2]
[393779596,1762977434478,-500.0,0.00033899,60]
[393779597,1762977434503,-500.0,0.00033899,60]
[393779598,1762977434529,-500.0,0.00033899,2]
[393779599,1762977434554,-269.6213378,0.00033899,2]
[393779600,1762977434577,-300.0,0.00035166,3]
[393779601,1762977434600,-400.0,0.00035259,2]
[393779602,1762977434624,-300.0,0.00038,120]
[393779603,1762977434647,-322.06106544,0.00039401,120]
[393779604,1762977434673,-500.0,0.00039716,60]
[393779605,1762977434699,-215.36908609,0.00040189,2]
[393779606,1762977434724,-500.0,0.00041451,31]
[393779607,1762977434751,-500.0,0.00041451,31]
[393779608,1762977434777,-500.0,0.00041451,31]
[393779609,1762977434804,-500.0,0.00041451,31]
[393779610,1762977434829,-437.17081058,0.00041451,31]
[393779611,1762977434855,-500.0,0.00041451,31]
[393779612,1762977434878,-500.0,0.00041451,31]
[393779613,1762977434903,-311.74773833,0.00041451,31]
[393779614,1762977434928,-500.0,0.00041451,31]
[393779615,1762977434955,-500.0,0.00041451,31]
[393779616,1762977434983,-500.0,0.00041451,31]
[393779617,1762977435008,-500.0,0.00041451,31]
[393779618,1762977435038,-500.0,0.00041451,31]
[393779619,1762977435066,-500.0,0.00041451,31]
[393779620,1762977435094,-500.0,0.00041451,31]
[393779621,1762977435121,-500.0,0.00041451,31]
[393779622,1762977435146,-500.0,0.00041451,31]
[393779623,1762977435172,-500.0,0.00041451,31]
[393779624,1762977435199,-500.0,0.00041451,31]
[393779625,1762977435225,-500.0,0.00041451,31]
[393779626,1762977435251,-500.0,0.00041451,31]
[393779627,1762977435274,-500.0,0.00041451,31]
[393779628,1762977435299,-500.0,0.00041451,31]
[393779629,1762977435324,-500.0,0.00041451,31]
[393779630,1762977435350,-500.0,0.00041451,31]
[393779631,1762977435376,-500.0,0.00041451,31]
[393779632,1762977435401,-500.0,0.00041451,31]
[393779633,1762977435424,-500.0,0.00041451,31]
[393779634,1762977435450,-500.0,0.00041451,31]
[393779635,1762977435478,-500.0,0.00041451,31]
[393779636,1762977435505,-500.0,0.00041451,31]
[393779637,1762977435531,-500.0,0.00041451,31]
[393779638,1762977435556,-500.0,0.00041451,31]
[393779639,1762977435580,-500.0,0.00041451,31]
[393779640,1762977435604,-500.0,0.00041451,31]
[393779641,1762977435629,-500.0,0.00041451,31]
[393779642,1762977435654,-500.0,0.00041451,31]
[393779643,1762977435678,-500.0,0.00041451,31]
[393779644,1762977435704,-500.0,0.00041451,31]
[393779645,1762977435730,-500.0,0.00041451,31]
[393779646,1762977435754,-325.87815272,0.00041451,31]
[393779647,1762977435792,-500.0,0.00041451,31]
[393779648,1762977435821,-500.0,0.00041451,31]
[393779649,1762977435847,-500.0,0.00041451,31]
[393779650,1762977435875,-547.74970438,0.00041451,31]
[393779651,1762977435901,-500.0,0.00041451,31]
[393779652,1762977435930,-500.0,0.00041451,31]
[393779653,1762977435958,-500.0,0.00041451,31]
[393779654,1762977435984,-500.0,0.00041451,31]
[393779655,1762977436011,-500.0,0.00041451,31]
[393779656,1762977436040,-500.0,0.00041451,31]
[393779657,1762977436065,-500.0,0.00041451,31]
[393779658,1762977436092,-500.0,0.00041451,31]
[393779659,1762977436119,-500.0,0.00041451,31]
[393779660,1762977436147,-500.0,0.00041451,31]
[393779661,1762977436174,-500.0,0.00041451,31]
[393779662,1762977436199,-500.0,0.00041451,31]
[393779663,1762977436225,-500.0,0.00041451,31]
[393779664,1762977436250,-500.0,0.00041451,31]
[393779665,1762977436276,-500.0,0.00041451,31]
[393779666,1762977436301,-500.0,0.00041451,31]
[393779667,1762977436447,-500.0,0.00041451,31]
[393779668,1762977436493,-500.0,0.00041451,31]
[393779669,1762977436519,-500.0,0.00041451,31]
[393779670,1762977436545,-500.0,0.00041451,31]
[393779671,1762977436571,-500.0,0.00041451,31]
[393779672,1762977436595,-500.0,0.00041451,31]
[393779673,1762977436621,-500.0,0.00041451,31]
[393779674,1762977436647,-500.0,0.00041451,31]
[393779675,1762977436673,-157.66301449,0.00041451,31]
[393779676,1762977436699,-500.0,0.00041451,31]
[393779677,1762977436725,-500.0,0.00041451,31]
[393779678,1762977436751,-500.0,0.00041451,31]
[393779679,1762977436778,-500.0,0.00041451,31]
[393779680,1762977436803,-500.0,0.00041451,31]
[393779681,1762977436829,-500.0,0.00041451,31]
[393779682,1762977436855,-441.27751203,0.00041451,31]
[393779683,1762977436881,-500.0,0.00041451,31]
[393779684,1762977436906,-500.0,0.00041451,31]
[393779685,1762977436932,-500.0,0.00041451,31]
[393779686,1762977436968,-500.0,0.00041451,31]
[393779687,1762977436993,-500.0,0.00041451,31]
[393779688,1762977437018,-500.0,0.00041451,31]
[393779689,1762977437044,-500.0,0.00041451,31]
[393779690,1762977437068,-3292.47961125,0.00041452,2]
[393779691,1762977437445,-41694.54297845,0.00041452,2]
[393779692,1762977437468,-500.0,0.000415,3]
[393779693,1762977437492,-2035.82345885,0.00041517,28]
[393779694,1762977437517,-258.77240094,0.00041616,31]
[393779695,1762977437540,-300.0,0.00041616,5]
[393779696,1762977437565,-5210.86116176,0.00041618,2]
[393779704,1762977713673,10000.0,0.00032877,120]
[393779705,1762977723154,10000.0,0.00032877,120]
[393779706,1762977734591,10000.0,0.00032877,120]
[393779707,1762977744996,188.0,0.00032877,120]
[393779708,1762977745963,10000.0,0.00032877,120]
[393779709,1762977763262,4421.33,0.00026575,10]
[393779710,1762977767420,400.0,0.00031916,3]
[393779711,1762977813195,169.376198,0.00018885,2]
[393779724,1762978055609,2523.8610142,0.00025204,2]
[393779725,1762978055636,13527.34215992,0.00025204,2]
[393779773,1762978231728,-1152.96700882,0.00031917,2]
[393779780,1762978231782,-6361.60020338,0.00031917,2]
[393779782,1762978231791,-193.64967185,0.00033798,119]
[393779784,1762978231801,-307.40640572,0.00036,120]
[393779786,1762978231810,-2000.0,0.00036622,20]
[393779788,1762978231819,-500.971508,0.00036851,2]
[393779790,1762978231827,-500.0,0.00036897,60]
[393779792,1762978231836,-343.73338983,0.00036898,60]
[393779794,1762978231845,-163.46,0.00037005,2]
[393779796,1762978231854,-186.81,0.00039182,2]
[393779798,1762978231863,-208.23933443,0.00039368,2]
[393779800,1762978231872,-1622.20524654,0.0003997,2]
[393779802,1762978231881,-210.17,0.00041358,2]
[393779804,1762978231890,-422.4760146,0.00041467,2]
[393779807,1762978231899,-500.0,0.000415,10]
[393779810,1762978231908,-239.79,0.00041518,2]
[393779813,1762978231918,-1685.54396394,0.00041618,2]
[393779816,1762978231929,-500.0,0.00042048,10]
[393779819,1762978231938,-1781.34552652,0.000422,28]
[393779822,1762978231947,-500.0,0.00042293,31]
[393779825,1762978231956,-369.54201697,0.00042293,31]
[393779828,1762978231965,-500.0,0.00042293,31]
[393779831,1762978231974,-500.0,0.00042293,31]
[393779834,1762978231983,-394.1944116,0.00042293,31]
[393779836,1762978231992,-500.0,0.00042293,31]
[393779838,1762978232001,-500.0,0.00042293,31]
[393779840,1762978232011,-493.47527911,0.00042293,31]
[393779842,1762978232020,-465.76630145,0.00042293,31]
[393779844,1762978232030,-500.0,0.00042295,120]
[393779846,1762978232039,-5552.18527217,0.00042297,2]
[393779848,1762978232048,-442.43214923,0.000423,10]
[393779850,1762978232057,-500.0,0.000423,10]
[393779851,1762978232066,-160.0,0.000423,2]
[393779853,1762978232075,-1000.0,0.00042848,10]
[393779854,1762978232084,-260.0,0.00042848,2]
[393779855,1762978232095,-500.0,0.00043267,3]
[393779856,1762978232103,-506.55581394,0.00043396,10]
[393779857,1762978232113,-360.0,0.00043396,2]
[393779858,1762978232122,-233.52,0.00043535,2]
[393779859,1762978232131,-238.3381331,0.00043775,2]
[393779860,1762978232140,-1000.0,0.00043815,3]
[393779861,1762978232149,-580.0,0.00043944,2]
[393779862,1762978232158,-177.0,0.00044048,120]
[393779863,1762978232167,-2607.99535549,0.00044864,2]
[393779864,1762978232176,-3363.2380969,0.00045337,2]
[393779865,1762978232185,-246.0,0.00046048,120]
[393779866,1762978232194,-422.4760146,0.00047491,2]
[393779867,1762978232203,-500.0,0.0004975,10]
[393779868,1762978232212,-500.0,0.0004975,10]
[393779869,1762978232221,-366.12524074,0.00050298,10]
[393779870,1762978232230,-1000.0,0.00050298,10]
[393779871,1762978232239,-1000.0,0.00050298,10]
[393779872,1762978232248,-162.70895661,0.00050846,10]
[393779874,1762978232257,-1500.0,0.00050846,10]
[393779876,1762978232266,-151.0,0.0005094,2]
[393779878,1762978232279,-297.24240105,0.0005094,2]
[393779880,1762978232288,-151.0,0.0005094,2]
[393779882,1762978232297,-151.0,0.0005094,2]
[393779883,1762978232306,-209.40437684,0.0005094,2]
[393779885,1762978232315,-151.0,0.0005094,2]
[393779887,1762978232325,-151.0,0.0005094,2]
[393779889,1762978232334,-151.0,0.0005094,2]
[393779891,1762978232343,-151.0,0.0005094,2]
[393779893,1762978232352,-151.0,0.0005094,2]
[393779895,1762978232361,-250.0,0.0005094,2]
[393779896,1762978232370,-246.77502198,0.0005094,2]
[393779898,1762978232379,-250.0,0.0005094,2]
[393779900,1762978232387,-250.0,0.0005094,2]
[393779902,1762978232396,-250.0,0.0005094,2]
[393779904,1762978232405,-250.0,0.0005094,2]
[393779905,1762978232414,-209.40437684,0.0005094,2]
[393779907,1762978232423,-250.0,0.0005094,2]
[393779909,1762978232432,-250.0,0.0005094,2]
[393779911,1762978232441,-250.0,0.0005094,2]
[393779912,1762978232450,-250.0,0.0005094,2]
[393779914,1762978232459,-250.0,0.0005094,2]
[393779916,1762978232468,-92.68718773,0.0005094,2]
[393779918,1762978232479,-157.31281227,0.0005094,2]
[393779920,1762978232488,-500.0,0.00050969,120]
[393779922,1762978232497,-500.0,0.00050969,120]
[393779924,1762978232506,-199.0,0.00050969,14]
[393779926,1762978232515,-500.0,0.00050969,120]
[393779928,1762978232525,-9942.35864263,0.00050971,2]
[393779930,1762978232536,-95.60291237,0.00050971,2]
[393779932,1762978232545,-199.15106884,0.00051,7]
[393779934,1762978232554,-256.86121247,0.00051,10]
[393779971,1762978237503,-181.14068066,0.00050999,120]
[393779973,1762978237512,-243.13878753,0.00051,10]
[393779974,1762978237521,-500.0,0.00051,10]
[393779976,1762978237530,-500.0,0.00051,10]
[393779978,1762978237539,-500.0,0.00051,10]
[393779980,1762978237548,-500.0,0.00051,10]
[393779982,1762978237557,-77.42053182,0.00051,10]
[393779984,1762978237568,-223.26930613,0.00051,10]
[393779986,1762978237577,-176.52875024,0.00051,10]
[393779988,1762978237586,-118.41568516,0.00051,10]
[393779991,1762978237597,-381.58431484,0.00051,10]
[393779992,1762978237605,-126.79568516,0.00051,10]
[393780212,1762978239725,-373.20431484,0.00051,10]
[393780214,1762978239735,-500.0,0.00051,10]
[393780216,1762978239744,-501.8169885,0.00051,10]
[393780218,1762978239752,-501.55324569,0.00051,10]
[393780220,1762978239761,-500.0,0.00051,10]
[393780222,1762978239770,-500.0,0.00051,10]
[393780224,1762978239780,-500.0,0.00051,10]
[393780226,1762978239788,-327.9378283,0.00051,10]
[393780227,1762978239800,-172.0621717,0.00051,10]
[393780229,1762978239809,-504.7902231,0.00051,10]
[393780231,1762978239817,-500.0,0.00051,10]
[393780233,1762978239827,-500.0,0.00051,10]
[393780236,1762978239836,-514.27100838,0.00051,10]
[393780239,1762978239845,-2000.0,0.00051394,10]
[393780242,1762978239854,-217.15233878,0.00051488,2]
[393780244,1762978239863,-217.15233878,0.00051488,2]
[393780246,1762978239872,-1000.0,0.00051548,10]
[393780248,1762978239881,-1000.0,0.00051548,10]
[393780250,1762978239890,-358.58403867,0.00051548,10]
[393780252,1762978239901,-1000.0,0.00051548,10]
[393780254,1762978239911,-585.31593074,0.00051548,10]
[393780256,1762978239920,-1000.0,0.00051548,10]
[393780258,1762978239930,-502.73643182,0.00051548,10]
[393780260,1762978239939,-427.47776148,0.00051548,10]
[393780262,1762978239948,-1000.0,0.00051548,10]
[393780264,1762978239958,-1000.0,0.00051548,10]
[393780266,1762978239967,-1000.0,0.00051548,10]
[393780268,1762978239976,-1000.0,0.00051548,10]
[393780270,1762978239985,-502.56255375,0.00051548,10]
[393780272,1762978239995,-666.1647146,0.00051548,10]
[393780274,1762978240012,-373.92274629,0.00051942,10]
[393780276,1762978240024,-549.45048534,0.00051942,10]
[393780278,1762978240034,-74.6053421,0.00052036,2]
[393780280,1762978240046,-150.58163322,0.00052036,2]
[393780282,1762978240055,-225.18697532,0.00052036,2]
[393780284,1762978240064,-1000.0,0.00052096,10]
[393780286,1762978240073,-1500.0,0.00052096,10]
[393780288,1762978240082,-233.51889341,0.00052584,2]
[393780290,1762978240091,-233.51889341,0.00052584,2]
[393780292,1762978240099,-2000.0,0.00052644,10]
[393780293,1762978240108,-1607.28760464,0.00053095,2]
[393780350,1762978242727,-632.48436466,0.00053095,2]
[393780351,1762978242737,-213.88838362,0.00053132,2]
[393780352,1762978242747,-19.98519911,0.00053132,2]
[393780353,1762978242759,-222.17389335,0.00053132,2]
[393780354,1762978242768,-100.18923359,0.00053192,10]
[393780356,1762978243956,-222.10683133,0.00053192,10]
[393780357,1762978243967,-500.0,0.00053356,60]
[393780358,1762978243979,-422.4760146,0.00053515,2]
[393780359,1762978243990,-251.11897888,0.0005368,2]
[393780360,1762978244001,-389.0,0.00054,120]
[393780361,1762978244012,-46.18162077,0.00054,120]
[393780362,1762978244024,-154.25551097,0.00054,120]
[393780363,1762978244034,-199.03109642,0.00054,120]
[393780364,1762978244044,-151.0,0.00054,120]
[393780365,1762978244054,-151.0,0.00054055,120]
[393780366,1762978244065,-206.06650449,0.0005411,120]
[393780367,1762978244076,-260.4103811,0.00054228,2]
[393780368,1762978244087,-500.0,0.00054452,60]
[393780369,1762978244097,-2017.0892534,0.00054574,4]
[393780370,1762978244107,-665.88622798,0.00054574,4]
[393780371,1762978244117,-206.95,0.00054574,10]
[393780372,1762978244127,-72980.85395159,0.00054584,120]
[393780373,1762978244138,-8068.3570136,0.00054664,4]
[393780374,1762978244148,-2663.54491192,0.00054664,4]
[393780375,1762978244158,-500.0,0.00054673,10]
[393780376,1762978244168,-506.11649179,0.00054673,10]
[393780377,1762978244177,-500.0,0.00054673,10]
[393780378,1762978244187,-500.0,0.00054673,10]
[393780379,1762978244198,-500.0,0.00054673,4]
[393780380,1762978244208,-500.0,0.00054673,10]
[393780381,1762978244218,-509.34390371,0.00054673,10]
[393780382,1762978244229,-501.65620951,0.00054673,10]
[393780383,1762978244240,-501.85812143,0.00054673,10]
[393780384,1762978244249,-464.57363186,0.00054673,10]
[393780385,1762978244259,-500.0,0.00054673,10]
[393780386,1762978244270,-500.0,0.00054673,10]
[393780387,1762978244282,-500.0,0.00054673,10]
[393780388,1762978244293,-500.0,0.00054673,7]
[393780389,1762978244303,-500.0,0.00054673,10]
[393780390,1762978244314,-500.0,0.00054673,10]
[393780391,1762978244326,-504.88759824,0.00054673,10]
[393780392,1762978244336,-500.0,0.00054673,10]
[393780393,1762978244346,-500.0,0.00054673,10]
[393780394,1762978244358,-500.0,0.00054673,10]
[393780395,1762978244368,-193.951708,0.00054673,120]
[393780396,1762978244378,-500.0,0.00054673,120]
[393780397,1762978244389,-502.88941117,0.00054673,2]
[393780398,1762978244401,-1955.51969612,0.00054674,4]
[393780403,1762978245845,-768.28,0.00054674,4]
[393780404,1762978245858,-501.05,0.00054674,4]
[393780405,1762978245900,-6860.59657088,0.00054674,4]
[393780406,1762978245911,-3329.4311399,0.00054674,4]
[393780407,1762978245921,-307.22192023,0.00054683,30]
[393780408,1762978245932,-500.0,0.00054683,120]
[393780409,1762978245942,-500.0,0.00054683,120]
[393780410,1762978245953,-500.0,0.00054683,120]
[393780411,1762978245963,-699157.04113082,0.00054684,2]
[393780412,1762978246148,-20119.96273298,0.00054684,2]
[393780413,1762978246160,-997.40998898,0.00054684,2]
[393780439,1762978884441,400.18833243,0.000271,2]
[393780486,1762979307565,1072.46950765,0.00025,2]
[393780487,1762979307591,8927.53049235,0.00025,2]
[393780489,1762979317766,16072.46950765,0.00024142,2]
[393780490,1762979317792,14307.11869729,0.00024142,2]
[393780491,1762979319936,505.95333175,0.00036666,30]
[393780579,1762979437723,-3062.72,0.00027397,10]
[393780580,1762979437733,-229.32809505,0.00030853,30]
[393780581,1762979437742,-160.0,0.000329,120]
[393780582,1762979437751,-208.57736391,0.000329,120]
[393780583,1762979437760,-208.57736391,0.000339,120]
[393780584,1762979437770,-400.0,0.00036665,2]
[393780585,1762979437780,-201.0,0.00036665,3]
[393780587,1762979437789,-2000.0,0.00036666,20]
[393780588,1762979437798,-13386.77076418,0.0003758,60]
[393780589,1762979437807,-340.0,0.00039245,5]
[393780590,1762979437815,-500.0,0.00040155,31]
[393780591,1762979437824,-500.0,0.00040155,31]
[393780592,1762979437833,-217.95475558,0.00040155,31]
[393780593,1762979437841,-500.0,0.00040155,31]
[393780594,1762979437850,-500.0,0.00040155,31]
[393780595,1762979437858,-500.0,0.00040155,31]
[393780596,1762979437867,-500.0,0.00040155,31]
[393780597,1762979437875,-500.0,0.00040155,31]
[393780598,1762979437883,-500.0,0.00040155,31]
[393780599,1762979437889,-500.0,0.00040155,31]
[393780600,1762979437896,-500.0,0.00040155,31]
[393780601,1762979437905,-442.97766538,0.00040155,31]
[393780602,1762979437915,-500.0,0.00040155,31]
[393780603,1762979437924,-500.0,0.00040155,31]
[393780605,1762979437933,-500.0,0.00040155,31]
[393780607,1762979437942,-500.0,0.00040155,31]
[393780609,1762979437952,-500.0,0.00040155,31]
[393780611,1762979437962,-457.35873079,0.00040155,31]
[393780613,1762979437971,-517.85956899,0.00040155,31]
[393780615,1762979437980,-500.0,0.00040155,31]
[393780617,1762979437989,-500.0,0.00040155,31]
[393780619,1762979437999,-500.0,0.00040155,31]
[393780621,1762979438007,-407.94393313,0.00040155,31]
[393780623,1762979438017,-500.0,0.00040155,31]
[393780625,1762979438026,-500.0,0.00040155,31]
[393780627,1762979438035,-500.0,0.00040155,31]
[393780629,1762979438045,-500.0,0.00040155,31]
[393780631,1762979438053,-400.79366617,0.00040155,31]
[393780633,1762979438063,-626.3228999,0.00040155,31]
[393780635,1762979438072,-500.0,0.00040155,31]
[393780637,1762979438082,-500.0,0.00040155,31]
[393780639,1762979438092,-500.0,0.00040155,31]
[393780641,1762979438101,-500.0,0.00040155,31]
[393780643,1762979438111,-500.0,0.00040155,31]
[393780645,1762979438120,-40746.89573998,0.00040156,2]
[393780647,1762979438132,-2581.89198725,0.00040156,2]
[393780797,1762979439891,-4787.18157366,0.00040156,2]
[393780799,1762979439901,-208.84859741,0.00040157,2]
[393780801,1762979439911,-502.10980136,0.00042144,10]
[393780802,1762979439920,-199.0,0.00042292,14]
[393780804,1762979439930,-500.0,0.00042292,14]
[393780806,1762979439939,-181.58702839,0.00042989,31]
[393780808,1762979439949,-17741.24034386,0.0004299,2]
[393780818,1762979440069,-6256.20151581,0.0004299,2]
[393781124,1762979446097,-163.1705312,0.00031737,2]
[393781125,1762979446109,-306.72417695,0.00040056,28]
[393781126,1762979523801,235.20902648,0.00018343,2]
[393781127,1762979529710,160.0,0.0003288,120]
[393781142,1762979893596,235.32657222,0.00018343,2]
[393781143,1762980000667,187.475405,0.00013699,2]
[393781144,1762980000902,187.475405,0.00020187,2]
[393781195,1762980632016,-187.475405,0.00026676,2]
[393781197,1762980632031,-187.475405,0.00033165,2]
[393781199,1762980632040,-183.49702691,0.00036567,2]
[393781201,1762980632048,-193.64967185,0.00036572,120]
[393781203,1762980632058,-300.0,0.00036666,3]
[393781205,1762980632067,-1200.0,0.00036666,3]
[393781207,1762980632075,-47.91193733,0.00036667,3]
[393781213,1762980632125,-252.08806267,0.00036667,3]
[393781214,1762980632134,-373.0,0.00036667,2]
[393781216,1762980632143,-300.0,0.00036667,3]
[393781218,1762980632152,-3931.29463991,0.00036668,4]
[393781219,1762980632162,-999.999999,0.00036674,7]
[393781220,1762980632171,-2000.0,0.00036674,20]
[393781221,1762980632180,-1983.92717947,0.00037028,2]
[393781222,1762980632188,-429.44652381,0.00037029,15]
[393781223,1762980632197,-500.0,0.00037029,15]
[393781224,1762980632206,-616.0510506,0.00037029,15]
[393781226,1762980632215,-563.14913157,0.00037029,15]
[393781228,1762980632224,-500.0,0.00037029,15]
[393781230,1762980632233,-511.31574868,0.00037029,15]
[393781231,1762980632241,-30349.809122,0.0003703,2]
[393781232,1762980632250,-3555.55914795,0.00037918,2]
[393781233,1762980632259,-2854.7894459,0.00038018,2]
[393781234,1762980632268,-187.475405,0.00039654,2]
[393781235,1762980632277,-198.7253,0.0004,120]
[393781236,1762980632286,-1373.3633351,0.0004041,2]
[393781237,1762980632295,-3117.5409992,0.0004041,2]
[393781238,1762980632304,-74980.55814033,0.0004099,2]
[393781239,1762980632312,-613.32680581,0.00042649,2]
[393781241,1762980632323,-731.33953115,0.00042649,2]
[393781242,1762980632332,-433.63922906,0.0004278,2]
[393781244,1762980632342,-4036.7801299,0.0004287,3]
[393781336,1762980637921,-10451.30791681,0.0004287,3]
[393781343,1762980637977,-8335.55794086,0.0004287,3]
[393781346,1762980637988,-1398.68211352,0.0004287,3]
[393781351,1762980638035,-359.64003234,0.0004287,3]
[393781795,1762980646649,-207.81223297,0.00036952,2]
[393781796,1762980646659,-87.32663187,0.0004287,3]
[393781797,1762980663893,190.36688303,0.000253,2]
[393781798,1762980707647,400.18833243,0.0003288,120]
[393781804,1762981107845,-153.33703227,0.00033471,10]
[393781805,1762981107866,-235.79722536,0.00033489,2]
[393781806,1762981107887,-500.0,0.0003703,60]
[393781807,1762981107908,-500.0,0.0003703,60]
[393781808,1762981107929,-500.0,0.0003703,60]
[393781809,1762981364280,110.86574237,0.0003668,20]
[393781888,1762981515595,-180.69168591,0.0003668,20]
[393781890,1762981515637,-1500.21431544,0.0004,120]
[393781892,1762981515683,-300.0,0.0004033,5]
[393781894,1762981515728,-1200.0,0.0004033,5]
[393781896,1762981515769,-500.0,0.00040331,31]
[393781898,1762981515812,-500.0,0.00040331,31]
[393781900,1762981515853,-500.0,0.00040331,31]
[393781902,1762981515899,-500.0,0.00040331,31]
[393781904,1762981515944,-500.0,0.00040331,31]
[393781906,1762981515987,-500.0,0.00040331,31]
[393781908,1762981516027,-500.0,0.00040331,31]
[393781910,1762981516068,-451.34134192,0.00040331,31]
[393781912,1762981516107,-485.42672509,0.00040331,31]
[393781914,1762981516149,-500.0,0.00040331,31]
[393781916,1762981516190,-500.0,0.00040331,31]
[393781919,1762981516232,-500.0,0.00040331,31]
[393781921,1762981516273,-500.0,0.00040331,31]
[393781923,1762981516319,-500.0,0.00040331,31]
[393781925,1762981516356,-500.0,0.00040331,31]
[393781931,1762981516584,-500.0,0.00040331,31]
[393781933,1762981516627,-500.0,0.00040331,31]
[393781935,1762981516672,-500.0,0.00040331,31]
[393781938,1762981516718,-321.95006393,0.00040331,31]
[393781939,1762981516761,-500.0,0.00040331,31]
[393781942,1762981516805,-500.0,0.00040331,31]
[393781944,1762981516852,-500.0,0.00040331,31]
[393781946,1762981516897,-500.0,0.00040331,31]
[393781947,1762981516944,-500.0,0.00040331,31]
[393781950,1762981516990,-500.0,0.00040331,31]
[393781952,1762981517036,-500.0,0.00040331,31]
[393781954,1762981517081,-500.0,0.00040331,60]
[393781956,1762981517128,-1000.0,0.00042769,120]
[393781957,1762981517173,-500.0,0.00042872,120]
[393781960,1762981517218,-407.9006749,0.00042873,10]
[393781962,1762981517263,-500.0,0.00042873,10]
[393781963,1762981517308,-408.80768446,0.00042873,10]
[393781966,1762981517353,-201.13176476,0.00042879,31]
[393781967,1762981517399,-500.0,0.00042879,120]
[393781970,1762981517444,-151.0,0.0004289,120]
[393781971,1762981517486,-151.0,0.0004289,120]
[393781973,1762981517528,-151.0,0.0004289,120]
[393781975,1762981517573,-783.975635,0.0004289,120]